bitfinex/quotes_BTCUSD_20251021
["timestamp","ask_amount","ask_price","bid_price","bid_amount"]
[1761030953501,0.40896303,107900.0,107890.0,0.31262215]
[1761030953734,0.40896303,107900.0,107890.0,0.40244116]
[1761030955310,0.42035235,107900.0,107890.0,0.40244116]
[1761030960226,0.42035235,107900.0,107890.0,0.46493837]
[1761030960612,0.42035235,107900.0,107890.0,0.46600181]
[1761030960951,0.01453723,107930.0,107900.0,0.00926784]
[1761030961220,0.40896303,107940.0,107930.0,0.18530529]
[1761030961417,0.74896303,107940.0,107930.0,0.18530529]
[1761030962793,0.40896303,107940.0,107930.0,0.18530529]
[1761030962942,0.74896303,107940.0,107930.0,0.18530529]
[1761030963143,0.74896303,107940.0,107930.0,0.22236807]
[1761030964775,0.34,107940.0,107930.0,0.22236807]
[1761030964986,0.74896303,107940.0,107930.0,0.22236807]
[1761030965236,0.40896303,107940.0,107930.0,0.22236807]
[1761030966428,3.5014526,107950.0,107940.0,0.18528812]
[1761030966597,3.59568658,107950.0,107940.0,0.18528812]
[1761030967001,3.0,107940.0,107930.0,0.22236807]
[1761030967202,0.40896303,107940.0,107930.0,0.22236807]
[1761030968004,0.18672355,107950.0,107930.0,0.22236807]
[1761030968204,0.0014526,107950.0,107940.0,0.20381693]
[1761030968430,0.0014526,107950.0,107940.0,0.27510713]
[1761030968840,0.41041563,107950.0,107940.0,0.27510713]
[1761030970012,0.0014526,107950.0,107940.0,0.40110842]
[1761030971056,0.0014526,107950.0,107940.0,0.40210842]
[1761030979016,0.0014526,107950.0,107940.0,0.36592614]
[1761030979376,0.4234929,107980.0,107970.0,0.18523663]
[1761030979545,0.01502598,107980.0,107970.0,0.18523663]
[1761030979747,0.42398901,107980.0,107970.0,0.18523663]
[1761030979946,0.76398901,107980.0,107970.0,0.18523663]
[1761030980191,0.76505137,107980.0,107970.0,0.18523663]
[1761030980395,0.7505215,107980.0,107970.0,0.18523663]
[1761030982512,0.34155847,107980.0,107970.0,0.32378068]
[1761030983092,0.7505215,107980.0,107970.0,0.32378068]
[1761030983279,0.7505215,107980.0,107970.0,0.27505564]
[1761030983996,0.4105215,107980.0,107960.0,0.30201379]
[1761030984206,4.00316269,107970.0,107950.0,0.19450418]
[1761030984408,0.40896303,107960.0,107950.0,0.28432319]
[1761030984609,0.40896303,107960.0,107950.0,0.30200064]
[1761030984975,0.40896303,107960.0,107950.0,0.33556805]
[1761030985370,0.40896303,107960.0,107950.0,0.18524064]
[1761030988992,0.74896303,107970.0,107960.0,0.18525379]
[1761030989694,0.74967134,107970.0,107960.0,0.18525379]
[1761030990443,0.34070831,107970.0,107960.0,0.18525379]
[1761030990667,0.74967134,107970.0,107960.0,0.18525379]
[1761030991658,0.74967134,107970.0,107950.0,0.18524064]
[1761030991864,0.40896303,107960.0,107950.0,0.18524064]
[1761030992267,0.34,107970.0,107960.0,0.18525379]
[1761030992503,0.74896303,107970.0,107960.0,0.18525379]
[1761030992872,0.93419966,107970.0,107960.0,0.18525379]
[1761030993984,1.15792606,107970.0,107960.0,0.18525379]
[1761030994186,1.34316269,107970.0,107960.0,0.18525379]
[1761030994389,1.15792606,107970.0,107960.0,0.18525379]
[1761030994570,1.34316269,107970.0,107960.0,0.18525379]
[1761030995170,1.15792606,107970.0,107960.0,0.18525379]
[1761030995380,0.74896303,107970.0,107960.0,0.18525379]
[1761030998100,0.74896303,107970.0,107960.0,0.22230323]
[1761030998305,0.74967134,107970.0,107960.0,0.22230323]
[1761031000006,0.40967134,107970.0,107960.0,0.18525379]
[1761031000250,0.00070831,107970.0,107960.0,0.3917928]
[1761031000832,0.40909406,107970.0,107960.0,0.3917928]
[1761031001029,0.00070831,107970.0,107960.0,0.48161181]
[1761031002633,0.40909406,107970.0,107960.0,0.48161181]
[1761031003798,0.00070831,107970.0,107960.0,0.48161181]
[1761031004709,0.00070831,107970.0,107960.0,0.51779409]
[1761031005263,0.00070831,107970.0,107960.0,1.33456559]
[1761031005832,0.00049611,107980.0,107970.0,0.22141891]
[1761031006006,0.00049611,107980.0,107970.0,0.80944268]
[1761031006201,0.00049611,107980.0,107970.0,0.40105693]
[1761031006632,0.00049611,107980.0,107970.0,0.80944268]
[1761031008529,0.00049611,107980.0,107970.0,0.81044268]
[1761031011328,0.00085019,107980.0,107970.0,0.81044268]
[1761031011961,0.00085019,107980.0,107970.0,0.40205693]
[1761031012398,0.00085019,107980.0,107970.0,0.81044268]
[1761031012525,0.00085019,107980.0,107970.0,0.40205693]
[1761031013178,0.00085019,107980.0,107970.0,0.81044268]
[1761031013379,0.22269926,107990.0,107980.0,0.22140176]
[1761031013574,0.00014872,107990.0,107980.0,0.49323257]
[1761031013798,0.40853447,107990.0,107980.0,0.49323257]
[1761031015000,0.40853447,107990.0,107980.0,0.45705029]
[1761031015443,0.00014872,107990.0,107980.0,0.49323257]
[1761031017452,0.40853447,107990.0,107980.0,0.42794077]
[1761031017652,0.40878575,108000.0,107990.0,0.18520233]
[1761031017859,3.8171715,108000.0,107990.0,0.18520233]
[1761031019982,3.9338915,108000.0,107990.0,0.18520233]
[1761031020274,3.93459951,108000.0,107990.0,0.18520233]
[1761031020918,3.93459951,108000.0,107990.0,0.22872214]
[1761031021123,0.00110801,108000.0,107990.0,0.22872214]
[1761031021361,0.00110801,108000.0,107990.0,0.7269269]
[1761031021579,0.00110801,108000.0,107990.0,0.76310918]
[1761031022459,0.00110801,108000.0,107990.0,1.17149493]
[1761031023323,1e-08,108000.0,107990.0,1.17149493]
[1761031023734,1e-08,108000.0,107990.0,1.17249493]
[1761031024232,1e-08,108000.0,107990.0,1.18249492]
[1761031025531,1e-08,108000.0,107990.0,1.18149492]
[1761031025965,1e-08,108000.0,107990.0,1.18349492]
[1761031027294,1e-08,108000.0,107990.0,0.77510917]
[1761031027493,1e-08,108000.0,107990.0,1.18349492]
[1761031028461,1e-08,108000.0,107990.0,1.21133013]
[1761031033891,1e-08,108000.0,107990.0,1.21029251]
[1761031034494,1e-08,108010.0,108000.0,1.45496827]
[1761031034654,1e-08,108010.0,108000.0,1.72030205]
[1761031035175,1e-08,108010.0,108000.0,1.72401297]
[1761031035343,1e-08,108010.0,108000.0,2.07401296]
[1761031036026,1e-08,108010.0,108000.0,2.07501296]
[1761031036809,1e-08,108010.0,108000.0,2.07401296]
[1761031037026,1e-08,108010.0,108000.0,2.07601296]
[1761031037520,1e-08,108010.0,108000.0,2.06601297]
[1761031037938,1e-08,108010.0,108000.0,0.84241215]
[1761031038144,1e-08,108010.0,108000.0,1.65814603]
[1761031040153,0.00035395,108010.0,108000.0,1.65814603]
[1761031040592,0.00035395,108010.0,108000.0,2.06601297]
[1761031040836,0.00035395,108010.0,108000.0,1.65814603]
[1761031044675,0.00035395,108010.0,108000.0,1.62196375]
[1761031045941,1e-08,108010.0,108000.0,1.65814603]
[1761031046723,0.35987829,108060.0,108040.0,0.18509976]
[1761031047086,0.19389197,108060.0,108040.0,0.42950468]
[1761031047859,0.19389197,108060.0,108040.0,0.40050468]
[1761031048057,0.20314608,108060.0,108040.0,0.40050468]
[1761031050877,0.20314608,108060.0,108010.0,0.18515969]
[1761031050878,0.1851323,108040.0,108010.0,0.18515969]
[1761031051079,0.00864742,108040.0,108030.0,0.18513375]
[1761031051360,0.5250998,108050.0,108030.0,0.32281463]
[1761031051577,0.5250998,108050.0,108040.0,0.01851166]
[1761031051778,0.5250998,108050.0,108040.0,0.20362828]
[1761031052049,0.5250998,108050.0,108040.0,0.18511662]
[1761031052169,0.5250998,108050.0,108040.0,0.23590974]
[1761031052396,0.52651496,108050.0,108040.0,0.23590974]
[1761031053028,0.34141516,108050.0,108040.0,0.23590974]
[1761031053670,0.00141516,108050.0,108040.0,0.23590974]
[1761031055099,0.18651465,108050.0,108040.0,0.21190974]
[1761031056292,0.00141516,108050.0,108040.0,0.21190974]
[1761031056633,0.18651465,108050.0,108040.0,0.21190974]
[1761031056964,0.00141516,108050.0,108040.0,0.21190974]
[1761031058374,0.00141516,108050.0,108040.0,0.33791103]
[1761031062061,0.00141516,108050.0,108040.0,0.29491103]
[1761031064917,3.0,108060.0,108050.0,0.18509949]
[1761031065087,3.0,108060.0,108050.0,0.23310054]
[1761031069118,3.0,108060.0,108050.0,0.20110054]
[1761031070693,0.0003537,108060.0,108050.0,0.20110054]
[1761031073756,0.1169937,108060.0,108050.0,0.20110054]
[1761031073963,0.30207606,108060.0,108040.0,0.32572338]
[1761031075132,0.1169937,108060.0,108050.0,0.18509949]
[1761031076147,0.1169937,108060.0,108050.0,0.15809949]
[1761031076319,0.1169937,108060.0,108050.0,0.20648178]
[1761031077218,0.0003537,108060.0,108050.0,0.20648178]
[1761031077425,0.1169937,108060.0,108050.0,0.20648178]
[1761031077640,0.0003537,108060.0,108050.0,0.20648178]
[1761031077842,0.1169937,108060.0,108050.0,0.20648178]
[1761031079324,0.0003537,108060.0,108050.0,0.20648178]
[1761031079487,0.1169937,108060.0,108050.0,0.20648178]
[1761031081499,0.30207606,108060.0,108050.0,0.18509949]
[1761031082795,0.1169937,108060.0,108050.0,0.18509949]
[1761031082941,0.30207606,108060.0,108050.0,0.18509949]
[1761031083420,0.30207606,108060.0,108050.0,0.14809949]
[1761031084257,0.30207606,108060.0,108050.0,0.18509949]
[1761031084456,3.0,108040.0,108030.0,0.23298734]
[1761031084699,3.0,108040.0,108020.0,0.00145096]
[1761031084700,0.18513375,108030.0,108020.0,0.00145096]
[1761031085259,3.18513375,108030.0,108020.0,0.00145096]
[1761031085460,3.64169376,108030.0,108020.0,0.00145096]
[1761031086227,3.66688266,108030.0,108020.0,0.00145096]
[1761031086722,3.68804937,108030.0,108020.0,0.00145096]
[1761031087150,3.7519256,108030.0,108020.0,0.00145096]
[1761031087363,3.73075889,108030.0,108020.0,0.00145096]
[1761031087589,3.61403889,108030.0,108020.0,0.00145096]
[1761031087794,3.73175889,108030.0,108020.0,0.00145096]
[1761031088315,3.75941376,108030.0,108020.0,0.00145096]
[1761031088531,3.73175889,108030.0,108020.0,0.00145096]
[1761031088946,3.73275889,108030.0,108020.0,0.00145096]
[1761031089497,3.73175889,108030.0,108020.0,0.00145096]
[1761031089909,3.73275889,108030.0,108020.0,0.00145096]
[1761031090514,0.34,108010.0,108000.0,0.15163212]
[1761031090715,0.4568,108010.0,108000.0,0.15163212]
[1761031091779,0.4568,108010.0,108000.0,0.15178114]
[1761031093862,3.18515089,108020.0,108010.0,0.18516641]
[1761031094020,3.55297498,108030.0,108020.0,0.18515089]
[1761031094226,3.0,108020.0,108010.0,0.18516641]
[1761031094782,0.34,108010.0,108000.0,0.28704168]
[1761031094987,0.4568,108010.0,108000.0,0.2508594]
[1761031095324,0.4568,108010.0,108000.0,0.27778243]
[1761031095673,0.34,108010.0,108000.0,0.27778243]
[1761031095816,0.4568,108010.0,108000.0,0.27778243]
[1761031096013,0.64196803,108010.0,108000.0,0.18604212]
[1761031096267,0.4568,108010.0,108000.0,0.00185694]
[1761031096469,0.4568,108010.0,108000.0,0.18704212]
[1761031097455,0.4568,108010.0,108000.0,0.16404212]
[1761031097722,0.4568,108010.0,108000.0,0.18256063]
[1761031097933,0.4568,108010.0,108000.0,0.2202627]
[1761031098128,0.4568,108010.0,108000.0,0.20174419]
[1761031099025,0.4568,108010.0,108000.0,0.16404212]
[1761031099450,0.4568,108010.0,108000.0,0.18256063]
[1761031100855,0.4568,108010.0,108000.0,0.16404212]
[1761031101257,0.4568,108010.0,107990.0,0.18519992]
[1761031101508,0.70895768,108010.0,107990.0,0.27501968]
[1761031101918,0.73680247,108010.0,107990.0,0.27501968]
[1761031102314,0.66982268,108010.0,107990.0,0.27501968]
[1761031106403,0.02784479,108010.0,108000.0,0.27500419]
[1761031106603,3.52515089,108020.0,108010.0,0.18516171]
[1761031106803,3.64209974,108020.0,108010.0,0.18516171]
[1761031107005,3.66994192,108020.0,108010.0,0.18516171]
[1761031107204,3.0,108010.0,108000.0,0.27500419]
[1761031107408,0.66994192,108020.0,108000.0,0.27500419]
[1761031107624,0.66994192,108020.0,108010.0,0.18516803]
[1761031109568,0.55314192,108020.0,108010.0,0.14416803]
[1761031109766,0.66994192,108020.0,108010.0,0.14416803]
[1761031109920,0.55314192,108020.0,108010.0,0.14416803]
[1761031110330,0.66994192,108020.0,108010.0,0.14416803]
[1761031112901,0.32994192,108020.0,108010.0,0.14416803]
[1761031115036,0.66994192,108020.0,108010.0,0.14416803]
[1761031116728,0.66994192,108020.0,108010.0,0.07516803]
[1761031117770,0.34,108010.0,108000.0,0.27500419]
[1761031118309,0.45676,108010.0,108000.0,0.27500419]
[1761031119347,0.11676,108010.0,108000.0,0.27500419]
[1761031122048,0.30192803,108010.0,108000.0,0.27500419]
[1761031122244,0.30192803,108010.0,108000.0,4e-05]
[1761031122944,0.30192803,108010.0,108000.0,0.18522518]
[1761031123176,0.30192803,108010.0,108000.0,4e-05]
[1761031123807,0.30192803,108010.0,107990.0,0.18159484]
[1761031123931,0.30192803,108010.0,107990.0,0.34952464]
[1761031124347,0.30192803,108010.0,107990.0,0.27141385]
[1761031128112,0.34,108000.0,107990.0,0.7157364]
[1761031128544,0.34,108000.0,107990.0,0.30759613]
[1761031128969,0.34,108000.0,107990.0,0.7157364]
[1761031129175,0.34,108000.0,107990.0,0.80555541]
[1761031129336,0.34,108000.0,107990.0,0.39841514]
[1761031129952,0.34,108000.0,107990.0,0.30859613]
[1761031131687,0.56766624,108020.0,108010.0,0.18516803]
[1761031131890,0.68434624,108020.0,108000.0,0.18516954]
[1761031132118,0.68434624,108020.0,108000.0,0.27498855]
[1761031133750,0.18516803,108010.0,108000.0,0.27498855]
[1761031134430,0.18516803,108010.0,108000.0,0.27500419]
[1761031135033,0.18516803,108010.0,108000.0,0.08981901]
[1761031135871,0.34,108000.0,107990.0,0.6352175]
[1761031136069,0.34,108000.0,107990.0,0.72503651]
[1761031136270,0.34,108000.0,107990.0,0.30763613]
[1761031136699,0.34,108000.0,107990.0,0.39745514]
[1761031137108,0.34,108000.0,107990.0,0.30863613]
[1761031137307,0.34,108000.0,107990.0,0.12704129]
[1761031137454,0.34,108000.0,107990.0,0.31224362]
[1761031141008,0.69360378,108020.0,108000.0,0.18517767]
[1761031141425,0.38251535,108020.0,108010.0,0.18516803]
[1761031141625,0.53982406,108020.0,108000.0,0.18517767]
[1761031141839,0.00014885,108020.0,108010.0,0.73782639]
[1761031142044,0.34014885,108020.0,108010.0,0.31116932]
[1761031142483,0.00014885,108020.0,108010.0,0.31116932]
[1761031142696,0.34014885,108020.0,108010.0,0.40098833]
[1761031143110,0.34014885,108020.0,108010.0,0.38898833]
[1761031143315,0.52529974,108020.0,108010.0,0.18516803]
[1761031143612,0.34014885,108020.0,108010.0,0.18516803]
[1761031144015,0.34014885,108020.0,108010.0,0.18616803]
[1761031144959,0.34014885,108020.0,108010.0,0.19857952]
[1761031148755,0.34014885,108020.0,108010.0,0.32458081]
[1761031150261,0.00014885,108020.0,108010.0,0.32458081]
[1761031150536,0.00014885,108020.0,108010.0,0.73272108]
[1761031151646,0.00014885,108020.0,108010.0,0.73276108]
[1761031152496,0.00014885,108020.0,108010.0,0.73176108]
[1761031152699,0.00014885,108020.0,108010.0,0.73376108]
[1761031153320,0.00014885,108020.0,108010.0,0.73176108]
[1761031153573,0.00014885,108020.0,108010.0,0.73276108]
[1761031153879,0.00014885,108020.0,108010.0,0.76259296]
[1761031154710,0.00014885,108020.0,108010.0,1.17073323]
[1761031154864,0.00014885,108020.0,108010.0,0.76159296]
[1761031155265,0.00014885,108020.0,108010.0,0.76359296]
[1761031156051,1e-08,108020.0,108010.0,0.76359296]
[1761031156708,1e-08,108020.0,108010.0,1.17173323]
[1761031157094,2.80291607,108060.0,108050.0,0.18509949]
[1761031157300,4.966e-05,108060.0,108050.0,0.22211956]
[1761031157488,0.00146474,108060.0,108050.0,0.22211956]
[1761031158956,0.34146474,108060.0,108050.0,0.22211956]
[1761031159536,0.00146474,108060.0,108050.0,0.22211956]
[1761031160143,0.00146474,108060.0,108050.0,0.17711956]
[1761031160339,0.00146474,108060.0,108050.0,0.1956295]
[1761031160755,0.00146474,108060.0,108050.0,0.32163079]
[1761031160979,0.00146474,108060.0,108050.0,0.30312085]
[1761031163057,0.00146474,108060.0,108050.0,0.71126112]
[1761031163198,3.5,108080.0,108070.0,0.18506523]
[1761031163400,3.0,108080.0,108070.0,0.22207844]
[1761031165131,3.34,108080.0,108070.0,0.22207844]
[1761031165332,3.52504811,108080.0,108070.0,0.22207844]
[1761031167238,3.52504811,108080.0,108070.0,0.19707844]
[1761031167491,3.0,108070.0,108060.0,0.33792915]
[1761031167788,3.0,108070.0,108060.0,0.42774816]
[1761031169559,3.0,108070.0,108060.0,0.42874816]
[1761031169702,3.0,108070.0,108060.0,0.42974816]
[1761031174982,0.00035364,108070.0,108060.0,0.42974816]
[1761031175353,0.00035364,108070.0,108060.0,0.49136443]
[1761031178670,0.00035364,108070.0,108060.0,0.45518215]
[1761031180884,0.00035364,108070.0,108060.0,0.49136443]
[1761031181307,0.00900898,108070.0,108060.0,0.49136443]
[1761031182312,0.00900898,108070.0,108060.0,0.45518215]
[1761031183461,0.00900898,108070.0,108060.0,0.49136443]
[1761031184718,0.00900898,108070.0,108060.0,0.49137992]
[1761031185101,0.00900898,108070.0,108060.0,0.36537863]
[1761031185810,0.00900898,108070.0,108060.0,0.24869863]
[1761031186772,0.00035364,108070.0,108060.0,0.24869863]
[1761031188673,0.00035364,108070.0,108060.0,0.78237707]
[1761031188886,0.00035364,108070.0,108060.0,0.37469992]
[1761031190583,0.00035364,108070.0,108060.0,0.78237707]
[1761031190789,0.00035364,108070.0,108060.0,1.19005422]
[1761031191421,0.0004,108090.0,108080.0,0.18504811]
[1761031191763,0.0004,108090.0,108080.0,0.43213513]
[1761031193034,0.0004,108090.0,108080.0,0.43313513]
[1761031194798,0.0004,108090.0,108080.0,0.43413513]
[1761031196195,0.0004,108090.0,108080.0,0.87799456]
[1761031200288,0.0004,108090.0,108080.0,0.47031741]
[1761031200619,0.0004,108090.0,108080.0,0.31749513]
[1761031200821,0.0004,108090.0,108080.0,0.47027741]
[1761031201030,0.0004,108090.0,108080.0,0.35367741]
[1761031201404,0.0004,108090.0,108080.0,0.76135456]
[1761031201796,0.0004,108090.0,108080.0,0.35367741]
[1761031202014,0.00110713,108090.0,108080.0,0.35367741]
[1761031202371,3.0,108110.0,108100.0,0.18501387]
[1761031202574,0.18549327,108110.0,108100.0,0.22201836]
[1761031203323,0.00049651,108110.0,108100.0,0.22201836]
[1761031204384,0.00049651,108110.0,108100.0,0.16501836]
[1761031204615,0.00049651,108110.0,108100.0,0.18351974]
[1761031204816,0.18549327,108110.0,108100.0,0.18351974]
[1761031205025,0.00049651,108110.0,108100.0,0.18351974]
[1761031205199,0.18549327,108110.0,108100.0,0.05550587]
[1761031205581,0.18549327,108110.0,108100.0,0.24051974]
[1761031205893,0.18549327,108110.0,108100.0,0.22201836]
[1761031207992,0.1862002,108110.0,108100.0,0.22201836]
[1761031209568,0.00120344,108110.0,108100.0,0.22201836]
[1761031210192,0.00120344,108110.0,108100.0,0.34801965]
[1761031211470,0.00120344,108110.0,108100.0,0.36983866]
[1761031211629,0.00120344,108110.0,108100.0,0.37083866]
[1761031213515,0.00120344,108110.0,108100.0,0.33465638]
[1761031213878,0.00120344,108110.0,108100.0,0.77851581]
[1761031214712,0.00120344,108110.0,108100.0,0.37083866]
[1761031216887,0.00120344,108110.0,108100.0,0.28101965]
[1761031228156,0.00120344,108110.0,108100.0,0.29956965]
[1761031228445,0.00120344,108110.0,108100.0,0.28101965]
[1761031229338,0.1862002,108110.0,108100.0,0.12800129]
[1761031229490,0.1862002,108110.0,108100.0,0.03818228]
[1761031229901,0.1862002,108110.0,108100.0,0.002]
[1761031230133,0.1862002,108110.0,108100.0,0.05448657]
[1761031232678,0.1862002,108110.0,108100.0,0.03598519]
[1761031233232,0.1862002,108110.0,108100.0,0.03818228]
[1761031234901,0.00120344,108110.0,108100.0,0.24169753]
[1761031235106,0.00120344,108110.0,108100.0,0.22319615]
[1761031236148,0.1862002,108110.0,108100.0,0.22319615]
[1761031236788,0.1862002,108110.0,108100.0,0.03818228]
[1761031236927,0.1862002,108110.0,108100.0,0.24129064]
[1761031237133,0.1862002,108110.0,108100.0,0.22319615]
[1761031237328,0.1862002,108110.0,108100.0,0.03818228]
[1761031237533,0.1862002,108110.0,108100.0,0.26436256]
[1761031237799,0.1862002,108110.0,108100.0,0.06084731]
[1761031237939,0.1862002,108110.0,108100.0,0.07934869]
[1761031238133,0.1862002,108110.0,108100.0,0.26436256]
[1761031238333,0.1862002,108110.0,108100.0,0.24586118]
[1761031244052,0.1862002,108110.0,108100.0,0.06084731]
[1761031244232,0.1862002,108110.0,108100.0,0.26423994]
[1761031244428,0.1862002,108110.0,108100.0,0.24586118]
[1761031246079,0.1862002,108110.0,108100.0,0.2096789]
[1761031246291,0.00120344,108110.0,108100.0,0.24586118]
[1761031246695,0.1862002,108110.0,108100.0,0.24586118]
[1761031246973,0.00120344,108110.0,108100.0,0.24586118]
[1761031248629,0.1862002,108110.0,108100.0,0.06084731]
[1761031248859,0.1862002,108110.0,108100.0,0.36246118]
[1761031249919,0.1862002,108110.0,108100.0,0.17744731]
[1761031250359,0.1862002,108110.0,108100.0,0.36246118]
[1761031251314,0.00120344,108110.0,108100.0,0.36246118]
[1761031252558,0.1862002,108110.0,108100.0,0.36246118]
[1761031253185,0.00120344,108110.0,108100.0,0.36246118]
[1761031253628,0.1862002,108110.0,108100.0,0.36246118]
[1761031254012,0.00120344,108110.0,108100.0,0.36246118]
[1761031254220,0.1862002,108110.0,108100.0,0.36246118]
[1761031256186,0.21279715,108120.0,108100.0,0.36246118]
[1761031256413,0.18499676,108110.0,108100.0,0.36246118]
[1761031257399,0.17206322,108120.0,108100.0,0.36246118]
[1761031257814,0.02781732,108110.0,108100.0,0.36246118]
[1761031258234,0.02781732,108110.0,108100.0,0.36146118]
[1761031258435,0.02781732,108110.0,108100.0,0.36046118]
[1761031258638,0.21281408,108110.0,108100.0,0.17644731]
[1761031258966,0.21281408,108110.0,108100.0,0.17544731]
[1761031259306,0.21281408,108110.0,108100.0,0.17644731]
[1761031259541,0.21281408,108110.0,108100.0,0.17744731]
[1761031262354,0.21281408,108110.0,108100.0,0.36246118]
[1761031263019,0.21281408,108110.0,108100.0,0.17744731]
[1761031266292,0.21281408,108110.0,108100.0,0.36246118]
[1761031266466,0.21281408,108110.0,108100.0,0.17744731]
[1761031268708,0.21281408,108110.0,108100.0,0.38096256]
[1761031268709,0.02781732,108110.0,108100.0,0.38096256]
[1761031268982,0.02781732,108110.0,108100.0,0.36246118]
[1761031269910,0.21281408,108110.0,108100.0,0.36246118]
[1761031270156,0.21281408,108110.0,108100.0,0.15478228]
[1761031272231,0.21281408,108110.0,108100.0,0.33979615]
[1761031272354,0.21281408,108110.0,108100.0,0.15478228]
[1761031272549,0.21281408,108110.0,108100.0,0.33979615]
[1761031274372,0.21281408,108110.0,108100.0,0.30361387]
[1761031275180,0.21281408,108110.0,108100.0,0.38866045]
[1761031278030,0.21281408,108110.0,108100.0,0.35247817]
[1761031278430,0.21281408,108110.0,108100.0,0.38866045]
[1761031280492,0.02781732,108110.0,108100.0,0.38866045]
[1761031282816,0.21281408,108110.0,108100.0,0.38866045]
[1761031284678,0.21281408,108110.0,108100.0,0.20364658]
[1761031285443,0.21281408,108110.0,108100.0,0.38866045]
[1761031287262,0.21281408,108110.0,108100.0,0.20364658]
[1761031287829,0.21281408,108110.0,108100.0,0.38866045]
[1761031288433,0.21281408,108110.0,108100.0,0.1186]
[1761031288630,0.21281408,108110.0,108100.0,0.002]
[1761031288830,0.55281408,108110.0,108100.0,0.002]
[1761031289248,0.34,108110.0,108100.0,0.002]
[1761031289487,0.52499676,108110.0,108100.0,0.002]
[1761031289666,0.55281625,108110.0,108100.0,0.002]
[1761031289862,0.55281625,108110.0,108100.0,0.001]
[1761031290118,0.52501387,108100.0,108090.0,0.15274228]
[1761031290429,0.52501387,108100.0,108090.0,0.19512759]
[1761031290617,0.52501387,108100.0,108090.0,0.38015858]
[1761031291026,0.52501387,108100.0,108090.0,0.26359858]
[1761031291393,0.52501387,108100.0,108090.0,0.26459858]
[1761031292194,0.52501387,108100.0,108090.0,0.26559858]
[1761031295999,0.52501387,108100.0,108090.0,0.08056759]
[1761031297183,0.52501387,108100.0,108090.0,0.03818228]
[1761031297733,0.52501387,108100.0,108090.0,0.22321327]
[1761031297930,0.34,108100.0,108090.0,0.22321327]
[1761031298116,0.52501387,108100.0,108090.0,0.22321327]
[1761031298951,0.34,108100.0,108090.0,0.22321327]
[1761031299172,0.52501387,108100.0,108090.0,0.22321327]
[1761031299373,0.52501387,108100.0,108090.0,0.2519697]
[1761031303598,0.52501387,108100.0,108090.0,0.22321327]
[1761031306472,0.34,108100.0,108090.0,0.22321327]
[1761031309850,0.04233056,108110.0,108100.0,0.18501387]
[1761031310056,0.01451107,108110.0,108100.0,0.18501387]
[1761031310261,0.01451107,108110.0,108100.0,0.30157387]
[1761031310480,0.01451107,108110.0,108100.0,0.36303448]
[1761031311243,0.21331211,108120.0,108100.0,0.36403448]
[1761031312803,0.21331211,108120.0,108100.0,0.36303448]
[1761031313474,0.21331211,108120.0,108100.0,0.29403448]
[1761031317479,0.21330573,108120.0,108100.0,0.29403448]
[1761031317658,0.18548776,108120.0,108100.0,0.29403448]
[1761031317864,0.02781732,108110.0,108100.0,0.23257387]
[1761031319697,0.02781732,108110.0,108100.0,0.23357387]
[1761031320693,0.02781732,108110.0,108100.0,0.16457387]
[1761031320920,0.00050231,108120.0,108110.0,0.22117904]
[1761031321132,0.00050231,108120.0,108110.0,0.80675133]
[1761031321977,0.00050231,108120.0,108110.0,0.83456001]
[1761031323041,0.00050231,108120.0,108110.0,0.83656001]
[1761031323941,0.00050231,108120.0,108110.0,0.83856001]
[1761031325668,0.00050231,108120.0,108110.0,0.43110902]
[1761031327351,0.00050231,108120.0,108110.0,0.83856001]
[1761031335463,0.00050231,108120.0,108110.0,0.43110902]
[1761031336537,0.00050231,108120.0,108110.0,0.83856001]
[1761031339166,0.0254,108130.0,108120.0,0.62861292]
[1761031339372,0.02549176,108130.0,108120.0,0.86439347]
[1761031339549,0.02549176,108130.0,108120.0,0.45694248]
[1761031339817,0.02549176,108130.0,108120.0,0.86439347]
[1761031340018,0.02549176,108130.0,108120.0,0.89219806]
[1761031340222,0.02549176,108130.0,108120.0,0.48474707]
[1761031340498,0.02549176,108130.0,108120.0,0.36822707]
[1761031340700,0.02549176,108130.0,108120.0,0.48474707]
[1761031341309,0.02549176,108130.0,108120.0,0.48574707]
[1761031341738,0.02549176,108130.0,108120.0,0.48674707]
[1761031342137,0.2104543,108130.0,108120.0,0.002]
[1761031342344,0.5504543,108130.0,108120.0,0.002]
[1761031342563,0.57826984,108130.0,108120.0,0.001]
[1761031342984,0.57826984,108130.0,108120.0,0.002]
[1761031343193,0.56826984,108130.0,108120.0,0.001]
[1761031343446,0.56826984,108130.0,108120.0,0.002]
[1761031343846,0.56826984,108130.0,108120.0,0.001]
[1761031344259,0.1849846,108120.0,108110.0,0.18499676]
[1761031344693,0.1849846,108120.0,108100.0,0.17278456]
[1761031344908,0.55322319,108130.0,108110.0,0.18499676]
[1761031345113,0.18497965,108120.0,108110.0,0.18499676]
[1761031347464,0.55322319,108130.0,108110.0,0.18499676]
[1761031347670,0.02826065,108130.0,108120.0,0.31098094]
[1761031347876,0.00044511,108130.0,108120.0,0.36057871]
[1761031348077,0.00044511,108130.0,108120.0,0.18497965]
[1761031348487,0.00044511,108130.0,108120.0,0.30149965]
[1761031349245,0.00044511,108130.0,108120.0,0.30249965]
[1761031350633,0.00044511,108130.0,108120.0,0.30149965]
[1761031350862,0.00044511,108130.0,108120.0,0.30249965]
[1761031351600,0.00044511,108130.0,108120.0,0.35402958]
[1761031352331,0.00044511,108130.0,108120.0,0.30249965]
[1761031352959,0.18540765,108130.0,108120.0,0.30249965]
[1761031353095,0.00044511,108130.0,108120.0,0.30249965]
[1761031357163,0.18540765,108130.0,108120.0,0.30249965]
[1761031357780,0.00044511,108130.0,108120.0,0.30249965]
[1761031358862,0.18540765,108130.0,108120.0,0.30249965]
[1761031359080,0.18540765,108130.0,108120.0,0.11752]
[1761031359281,0.52540765,108130.0,108120.0,0.001]
[1761031359513,0.59736773,108130.0,108120.0,0.001]
[1761031359729,0.62518263,108130.0,108120.0,0.001]
[1761031359900,0.55322255,108130.0,108120.0,0.001]
[1761031362813,3.64304156,108130.0,108120.0,0.001]
[1761031363868,0.18501604,108100.0,108080.0,0.26274582]
[1761031364044,0.18501604,108100.0,108080.0,0.44126753]
[1761031364409,0.18501604,108100.0,108090.0,0.18503099]
[1761031364698,0.21283553,108100.0,108090.0,0.24766084]
[1761031365064,0.21283553,108100.0,108090.0,0.06262985]
[1761031365265,0.21283553,108100.0,108090.0,0.24766084]
[1761031366808,0.21283553,108100.0,108090.0,0.06262985]
[1761031367012,0.21283553,108100.0,108090.0,0.06362985]
[1761031367226,0.21274304,108100.0,108090.0,0.06362985]
[1761031367630,0.21274304,108100.0,108090.0,0.24866084]
[1761031368449,0.02781949,108100.0,108090.0,0.24866084]
[1761031369269,0.21283336,108100.0,108090.0,0.24866084]
[1761031369701,0.02781949,108100.0,108090.0,0.24866084]
[1761031370688,0.53427232,108110.0,108090.0,0.24866084]
[1761031370689,0.37219033,108110.0,108090.0,0.24866084]